[Event "37th ECCC 2022"]
[Site "Mayrhofen"]
[Date "2022.10.05"]
[Round "3.62"]
[White "Pelletier, Yannick"]
[Black "Ris, Robert"]
[Result "1/2-1/2"]
[ECO "D37"]
[WhiteElo "2521"]
[BlackElo "2467"]
[Annotator "TA"]
[PlyCount "141"]
[EventDate "2022.10.03"]
[EventType "team-tourn"]
[EventCountry "AUT"]
[SourceTitle "playchess.com"]
[Source "ChessBase"]
[SourceQuality "1"]
[TimeControl "40/5400+30:1800+30"]

{[%evp 9,141,31,43,37,44,27,30,27,29,37,32,0,0,0,0,1,9,4,5,0,0,4,4,3,1,2,2,4,7,0,0,0,0,0,0,0,0,0,0,0,0,0,0,0,0,0,0,0,0,0,0,0,0,0,0,0,0,0,24,0,0,0,24,24,24,0,0,0,0,0,0,0,0,0,0,0,113,113,113,113,113,113,113,113,113,113,113,113,113,113,113,113,113,113,113,113,113,113,113,113,113,113,113,113,113,113,113,113,113,113,113,113,113,99,99,99,99,99,99,0,99,99,99,0,99,0,99,0,0,0,68,0,0,0]} 1. d4 {[%emt 0:00:09]} d5 {[%emt 0:00:23]} 2. c4 {[%emt 0:00:48]} e6 {[%emt 0:00:09]} 3. Nf3 {[%emt 0:00:10]} Nf6 {[%emt 0:00:09]} 4. Nc3 {[%emt 0:00:25]} h6 {[%emt 0:00:33]} 5. g3 {[%emt 0:08:43]} Bd6 {[%emt 0:01:02]} 6. Bg2 {[%emt 0:00:30] D37: Queen's Gambit Declined: 5 Bf4.} Nc6 {[%emt 0:01:14]} 7. b3 {[%emt 0:17:28]} O-O {[%emt 0:01:55]} 8. O-O {[%emt 0:02:11] White has an edge.} dxc4 {[%emt 0:01:35]} 9. bxc4 {[%emt 0:00:30]} e5 {[%emt 0:00:08]} 10. c5 {[%emt 0:11:04]} (10. Rb1 {keeps more tension.} exd4 11. Nxd4 Nxd4 12. Qxd4 Re8 13. Rd1) 10... exd4 {[%emt 0:06:50]} 11. Nxd4 {[%emt 0:00:29]} Bxc5 {[%emt 0:01:54]} 12. Nxc6 {[%emt 0:00:13]} bxc6 {[%emt 0:01:08]} 13. Qxd8 {[%emt 0:03:34]} Rxd8 {[%emt 0:00:09]} 14. Bxc6 {[%emt 0:00:41]} Rb8 {[%emt 0:05:16]} 15. Bf4 {[%emt 0:03:45]} Bb7 {[%emt 0:06:39]} (15... Bb6 {looks sharper.} 16. Na4 Bh3 17. Nxb6 Bxf1 18. Bxc7 Bxe2 19. Re1 Ba6) 16. Bxb7 {[%emt 0:11:09]} Rxb7 {[%emt 0:00:05] [#]} 17. Rab1 $146 {[%emt 0:00:49]} ({Predecessor:} 17. Rfd1 Re8 18. Rab1 Rxb1 19. Rxb1 Bb6 20. Kf1 g5 21. Bd2 Rd8 22. Be1 Kf8 23. e3 {0-1 (54) Skatchkov,V (2282)-Faizrakhmanov,R (2480) Cheliabinsk 2022}) 17... Rxb1 {[%emt 0:15:59]} 18. Rxb1 {[%emt 0:00:04]} Bb6 {[%emt 0:12:36]} 19. Na4 {[%emt 0:11:10]} Rd4 {[%emt 0:01:22]} 20. Nxb6 {[%emt 0:00:04]} cxb6 $11 {[%emt 0:00:06][%mdl 4096] Endgame KRB-KRN} 21. Rb3 {[%emt 0:01:16]} Ra4 {[%emt 0:03:50]} 22. a3 {[%emt 0:01:35]} Ne4 {[%emt 0:01:06]} 23. f3 {[%emt 0:01:57]} g5 {[%emt 0:08:31]} 24. Be5 {[%emt 0:03:12]} f6 {[%emt 0:02:16] [#] ...Nc5 is the strong threat.} 25. Bb2 {[%emt 0:05:44]} Nc5 {[%emt 0:02:06]} 26. Rb4 {[%emt 0:00:24] aiming for Rxa4.} Kf7 {[%emt 0:00:52]} 27. g4 {[%emt 0:06:59]} Ke6 {[%emt 0:04:21]} 28. Kf2 {[%emt 0:00:13]} Rxb4 {[%emt 0:04:08]} 29. axb4 {[%emt 0:00:03] KB-KN} Nb7 {[%emt 0:00:07]} 30. Ke3 {[%emt 0:01:10]} a5 {[%emt 0:01:06]} 31. bxa5 {[%emt 0:01:13]} bxa5 {[%emt 0:00:36]} 32. Kd4 {[%emt 0:03:21]} Nd6 {[%emt 0:10:32]} 33. Kc5 {[%emt 0:00:27]} Ne8 {[%emt 0:02:28]} 34. Kb5 {[%emt 0:00:26]} Nd6+ {[%emt 0:00:38]} 35. Kc5 {[%emt 0:00:02]} Ne8 {[%emt 0:00:21]} 36. Bc3 {[%emt 0:01:04]} Nd6 $1 {[%emt 0:01:26]} 37. Be1 {[%emt 0:02:04]} (37. h3 $5 {[%cal Rc3a5]}) 37... a4 {[%emt 0:03:21]} 38. Bb4 {[%emt 0:00:46]} f5 {[%emt 0:01:43]} 39. h3 {[%emt 0:00:12]} Nf7 {[%emt 0:00:40]} 40. Bc3 {[%emt 0:03:45]} a3 {[%emt 0:00:37]} 41. Kb4 {[%emt 0:02:04]} a2 {[%emt 0:04:13]} 42. Kb3 {[%emt 0:00:34]} Ne5 {[%emt 0:06:44]} (42... fxg4 $1 $11 43. hxg4 h5 44. gxh5 Kf5) 43. Kxa2 $16 {[%emt 0:00:55]} Ng6 {[%emt 0:00:45] [#]} 44. Bd2 $1 {[%emt 0:03:19]} f4 {[%emt 0:02:47]} 45. Bc3 {[%emt 0:03:05]} Kf7 {[%emt 0:01:20] Prevents Bg7.} 46. Kb3 {[%emt 0:00:35]} Nh4 {[%emt 0:00:30]} 47. Kc4 {[%emt 0:00:25]} Ng2 {[%emt 0:00:37]} 48. Bd4 {[%emt 0:00:38]} Nh4 {[%emt 0:00:24]} 49. Bf2 {[%emt 0:01:57] And now Bxh4 would win.} Ng6 {[%emt 0:00:18]} 50. Kd5 {[%emt 0:00:14]} Ne7+ {[%emt 0:01:06]} 51. Ke5 {[%emt 0:14:03]} Ng6+ {[%emt 0:00:11]} 52. Kd6 {[%emt 0:00:05]} Kf6 {[%emt 0:00:33]} 53. Kd7 {[%emt 0:00:12]} Kf7 {[%emt 0:00:11]} 54. Be1 {[%emt 0:00:45]} Ne5+ {[%emt 0:00:50]} 55. Kd6 {[%emt 0:00:15]} Ng6 {[%emt 0:00:13]} 56. Bc3 {[%emt 0:01:06]} Nh4 {[%emt 0:00:33]} 57. Ke5 {[%emt 0:00:20]} Ng6+ {[%emt 0:00:24]} 58. Ke4 {[%emt 0:00:07]} Nh4 {[%emt 0:00:32]} 59. Be1 {[%emt 0:01:35] Strongly threatening Bxh4.} Ng6 {[%emt 0:00:11]} 60. Bd2 {[%emt 0:00:08]} Ke6 {[%emt 0:00:23]} 61. e3 {[%emt 0:02:44]} fxe3 {[%emt 0:00:06]} 62. Bxe3 {[%emt 0:00:02]} Kf6 {[%emt 0:01:13]} 63. Bd4+ {[%emt 0:00:20]} Kf7 {[%emt 0:00:04]} 64. Be5 {[%emt 0:02:28] Against Nf4} ({White should try} 64. Bc3 $16) 64... Nh4 {[%emt 0:01:37]} (64... Nxe5 $11 {remains equal.} 65. Kxe5 Kg7) 65. Bg3 {[%emt 0:02:01]} Ng6 {[%emt 0:00:07]} 66. Be5 {[%emt 0:00:03]} Nh4 {[%emt 0:00:21]} 67. Bg3 {[%emt 0:00:34]} Ng6 $1 {[%emt 0:00:05]} 68. f4 {[%emt 0:00:14]} (68. Kf5 $16) 68... gxf4 $11 {[%emt 0:00:24]} 69. Bxf4 {[%emt 0:00:04]} h5 {[%emt 0:01:02]} (69... Nxf4 $11 70. Kxf4 Ke6) 70. gxh5 {[%emt 0:00:22]} (70. g5 $1 $14) 70... Nxf4 {[%emt 0:00:07]} 71. Kxf4 {[%emt 0:00:04] Weighted Error Value: White=0.02 (flawless) /Black=0.04 (flawless)} 1/2-1/2

[Event "37th ECCC 2022"]
[Site "Mayrhofen"]
[Date "2022.10.05"]
[Round "3.63"]
[White "Ragnarsson, Dagur"]
[Black "Petkidis, Anthony"]
[Result "0-1"]
[ECO "E10"]
[WhiteElo "2348"]
[BlackElo "2447"]
[Annotator "TA"]
[PlyCount "124"]
[EventDate "2022.10.03"]
[EventType "team-tourn"]
[EventCountry "AUT"]
[SourceTitle "playchess.com"]
[Source "ChessBase"]
[SourceQuality "1"]
[TimeControl "40/5400+30:1800+30"]

{[%evp 9,124,6,18,18,29,21,29,13,14,0,33,29,46,35,46,30,30,-1,-6,-6,-7,-12,-7,0,-14,-8,-16,-19,-16,-16,-6,-39,-25,-43,-27,-20,-32,-136,-96,-120,-108,-125,-26,-98,-46,-58,-37,-52,-62,-64,16,-260,-168,-151,-51,-38,-48,-239,-237,-221,-207,-355,-298,-282,-275,-291,-303,-362,-341,-517,-379,-388,-361,-906,-883,-1012,-1005,-29967,-29966,-29978,-29979,-29960,-6080,-6135,-6135,-5383,-5377,-5445,-5306,-5293,-5256,-3165,-2018,-6203,-5202,-29969,-29968,-29964,-29966,-29966,-29957,-29952,-5281,-29968,-29969,-29968,-29970,-29989,-29988,-29988,-29983,-29989,-29984,-29988,-29989,-29989,-12333]} 1. d4 {[%emt 0:00:03]} Nf6 {[%emt 0:00:18]} 2. c4 {[%emt 0:00:08]} e6 {[%emt 0:00:11]} 3. Nf3 {[%emt 0:01:03]} d5 {[%emt 0:00:25]} 4. g3 {[%emt 0:02:02]} Bb4+ {[%emt 0:00:36]} 5. Bd2 {[%emt 0:00:23]} Bd6 {[%emt 0:00:27]} 6. Bg2 {[%emt 0:01:13] E01: Catalan: Early deviations.} c6 {[%emt 0:01:10]} 7. O-O {[%emt 0:05:33]} Nbd7 {[%emt 0:00:51]} 8. Qb3 {[%emt 0:03:02] White has an edge.} O-O {[%emt 0:06:40]} 9. Nc3 {[%emt 0:01:35]} dxc4 {[%emt 0:03:13]} 10. Qxc4 {[%emt 0:00:06]} e5 {[%emt 0:00:38]} 11. Rad1 {[%emt 0:01:37]} Qe7 {[%emt 0:04:41]} 12. Bg5 {[%emt 0:05:23]} h6 {[%emt 0:09:28]} 13. Bc1 {[%emt 0:22:06]} (13. Bxf6 $5 Nxf6 14. dxe5 (14. Nxe5 Bxe5 15. dxe5 Qxe5 $14) 14... Bxe5 15. Nxe5 Qxe5 16. Qb4 $11) 13... e4 {[%emt 0:09:14]} (13... Nb6 $5 14. Qb3 $8 e4 $11) 14. Nd2 {[%emt 0:03:32][%cal Rd2e4]} Nb6 {[%emt 0:05:12]} 15. Qb3 {[%emt 0:00:06][%cal Rc3e4]} Bf5 {[%emt 0:02:49]} 16. f3 {[%emt 0:04:39]} exf3 {[%emt 0:07:20]} 17. Nxf3 {[%emt 0:00:30][%cal Bd2f3,Bf3h4,Bh4f5][%mdl 32]} c5 {[%emt 0:16:17] [#]} 18. Nh4 $146 {[%emt 0:06:40]} ({Predecessor:} 18. Nb5 c4 19. Qe3 Be4 20. Nxd6 Qxd6 21. Ne5 Bxg2 22. Kxg2 Qd5+ 23. Qf3 Ne4 24. Ng4 {0-1 (43) Parkhov,Y (2350)-Praggnanandhaa,R (2567) New Delhi 2019}) 18... Be6 {[%emt 0:06:26]} 19. d5 {[%emt 0:03:39]} Bg4 {[%emt 0:00:09]} 20. e4 {[%emt 0:05:07]} Bxd1 {[%emt 0:03:40]} 21. Qxd1 {[%emt 0:00:08]} Be5 {[%emt 0:00:20]} 22. Nf5 {[%emt 0:00:20]} Qd8 {[%emt 0:00:22]} 23. g4 {[%emt 0:13:18]} (23. Bf4 $15 Nbd7 24. Qb3) 23... Ne8 {[%emt 0:01:43]} 24. g5 {[%emt 0:02:12]} Nd6 {[%emt 0:01:52]} 25. Qg4 {[%emt 0:02:08]} Kh8 {[%emt 0:08:58]} (25... Nxf5 $17 26. Rxf5 h5) 26. Rf3 {[%emt 0:05:53]} (26. Kh1 $11) 26... Nxf5 {[%emt 0:05:09]} (26... Qd7 $1 $17 27. Qh4 Nxf5 28. exf5 Bd4+ 29. Kh1 Rae8) 27. exf5 $15 {[%emt 0:00:31]} Bd4+ {[%emt 0:00:07]} (27... Nxd5 28. gxh6 g5 29. fxg6 fxg6 30. Nxd5 $16) (27... Re8 $5 {[%cal Re5d4]} 28. gxh6 Bd4+ 29. Kf1 g6 30. fxg6 fxg6 $17) 28. Kh1 {[%emt 0:00:59]} Re8 {[%emt 0:01:23] aiming for ...Bxc3.} (28... Nxd5 $2 29. gxh6 Re8 30. Rf1 (30. hxg7+ Kg8 $18) 30... gxh6 31. Nxd5 $18) 29. Ne4 {[%emt 0:01:46]} Qxd5 {[%emt 0:01:12]} ({Black should try} 29... Qd7 $1 $15 30. Qh4 Rxe4 $1 31. Qxe4 hxg5) 30. Rh3 $2 {[%emt 0:00:06][%mdl 8192]} (30. Rf1 $11 {and White is okay.}) 30... Qc4 {[%emt 0:00:42]} 31. Qd1 {[%emt 0:08:09] [#]} Rxe4 {[%emt 0:02:16]} 32. Bxe4 {[%emt 0:00:10]} Bxb2 {[%emt 0:00:09]} 33. Bxb2 $2 {[%emt 0:01:14] Black continues to play with concentration.} ({White has to play} 33. Bxb7 $15 Bxc1 34. Bxa8 Bxg5 35. Bf3) 33... Qxe4+ $19 {[%emt 0:00:05]} 34. Kg1 {[%emt 0:00:07]} Qxf5 {[%emt 0:00:57]} 35. Rg3 {[%emt 0:01:20]} (35. Rh5 {is a better defense.}) 35... Kh7 {[%emt 0:01:45]} 36. gxh6 {[%emt 0:00:34]} g6 {[%emt 0:00:08]} 37. Rf3 {[%emt 0:00:40]} Qg4+ {[%emt 0:00:47]} 38. Kh1 {[%emt 0:00:06]} Qe4 {[%emt 0:00:07]} (38... Kxh6 $2 39. Bc1+ Kg7 {[#]} 40. Rxf7+ $3 {[%mdl 512]} Kxf7 41. Qxg4 $18) 39. Qb3 {[%emt 0:00:53]} (39. Kg1 $142 f5 40. Qd3) 39... Nd5 {[%emt 0:00:35] Strongly threatening ...c4.} 40. Kg1 {[%emt 0:00:24]} Rf8 {[%emt 0:00:50]} 41. Bg7 $2 {[%emt 0:01:21]} (41. Rf2) 41... c4 {[%emt 0:08:54]} 42. Qa3 {[%emt 0:00:03]} Qg4+ {[%emt 0:03:26]} 43. Kf1 {[%emt 0:04:00]} Re8 {[%emt 0:00:14]} 44. Rxf7 {[%emt 0:02:41]} Qd1+ {[%emt 0:11:50]} 45. Kg2 {[%emt 0:00:07]} Re2+ {[%emt 0:00:57]} (45... Qd2+ $142 46. Kg3 Re3+ 47. Qxe3 Qxe3+ 48. Rf3 Qg1+ 49. Kh3 Ne3 50. Rxe3 Qxe3+ 51. Kg4 c3 52. Bxc3 Qxc3 53. h4 Qc4+ 54. Kg5 Qxa2 55. h5 gxh5 56. Kf5 Qe2 57. Kf4 Kxh6 58. Kf5 Kg7 59. Kf4 Kf6 60. Kg3 Kf5 61. Kh3 Kf4 62. Kh4 Qh2#) 46. Kh3 {[%emt 0:03:35]} Re3+ {[%emt 0:00:15]} 47. Qxe3 {[%emt 0:00:04]} Nxe3 {[%emt 0:00:06][%csl Ge3][%cal Rd1g4]} 48. Bd4+ {[%emt 0:00:28]} Kg8 {[%emt 0:02:12][%csl Ge3][%cal Rd1g4]} 49. Rg7+ {[%emt 0:00:05]} Kf8 {[%emt 0:00:04][%csl Ge3][%cal Rd1g4]} 50. Bc5+ {[%emt 0:00:05]} Ke8 {[%emt 0:00:03][%csl Ge3][%cal Rd1g4]} 51. Rg8+ {[%emt 0:00:14]} Kd7 {[%emt 0:03:57][%csl Ge3][%cal Rd1g4]} 52. Rg7+ {[%emt 0:01:18]} Kc6 {[%emt 0:00:09][%csl Ge3][%cal Rd1g4]} 53. Bxe3 {[%emt 0:00:05] KQ-KRB} Qf3+ {[%emt 0:00:08]} 54. Kh4 {[%emt 0:00:07]} Qxe3 {[%emt 0:00:59]} 55. Rxg6+ {[%emt 0:00:05] KQ-KR} Kb5 {[%emt 0:00:19]} (55... Kc5 $142 56. h7 Qe4+ 57. Kh5 Qe8 58. Kh6 Qf8+ 59. Kg5 c3 60. Rg8 Qe7+ 61. Kh6 Qd6+ 62. Kg5 Qe7+ 63. Kh6 Qd6+ 64. Kg5 Qe7+) 56. Rg5+ {[%emt 0:00:49]} Kb4 {[%emt 0:00:30] Black mates.} 57. a3+ {[%emt 0:05:20]} Ka4 {[%emt 0:00:26]} 58. Rh5 {[%emt 0:00:19]} Qf4+ {[%emt 0:01:23]} 59. Kh3 {[%emt 0:00:04]} Qf3+ {[%emt 0:00:04]} 60. Kh4 {[%emt 0:00:06]} Qf6+ {[%emt 0:00:13]} 61. Kh3 {[%emt 0:00:20]} c3 {[%emt 0:00:46]} 62. h7 {[%emt 0:00:14]} Qh8 {[%emt 0:00:36] Weighted Error Value: White=0.66/Black=0.31} (62... Qf3+ $142 63. Kh4 c2 64. Rg5 Qf2+ 65. Kh5 Qxh2+ 66. Kg6 c1=Q 67. Rg4+ Kxa3 68. h8=Q Qxh8 69. Rg3+ Kb4 70. Rg4+ Kc5 71. Rg5+ Kd6 72. Rg3 Qg8+ 73. Kh5 Qh1+ 74. Rh3 Qxh3#) 0-1

[Event "37th ECCC 2022"]
[Site "Mayrhofen"]
[Date "2022.10.05"]
[Round "3.64"]
[White "Fischer, Daniel"]
[Black "Bjornsson, Sigurbjorn"]
[Result "1/2-1/2"]
[ECO "B78"]
[WhiteElo "2407"]
[BlackElo "2308"]
[Annotator "TA"]
[PlyCount "76"]
[EventDate "2022.10.03"]
[EventType "team-tourn"]
[EventCountry "AUT"]
[SourceTitle "playchess.com"]
[Source "ChessBase"]
[SourceQuality "1"]
[TimeControl "40/5400+30:1800+30"]

{[%evp 24,76,37,41,50,45,45,47,46,37,49,52,50,49,53,46,46,43,51,33,55,60,58,0,0,0,0,0,0,0,0,0,0,0,0,0,0,0,0,0,0,0,0,0,0,0,0,0,0,0,0,0,0,0,0]} 1. e4 {[%emt 0:00:04]} c5 {[%emt 0:00:09]} 2. Nf3 {[%emt 0:00:04]} d6 {[%emt 0:00:04]} 3. d4 {[%emt 0:00:04]} cxd4 {[%emt 0:00:03]} 4. Nxd4 {[%emt 0:00:04]} Nf6 {[%emt 0:00:05]} 5. Nc3 {[%emt 0:00:05]} g6 {[%emt 0:00:04]} 6. Be3 {[%emt 0:00:41]} Bg7 {[%emt 0:00:07]} 7. f3 {[%emt 0:00:25]} O-O {[%emt 0:00:10]} 8. Qd2 {[%emt 0:00:07]} Nc6 {[%emt 0:00:05]} 9. Bc4 {[%emt 0:00:25]} Bd7 {[%emt 0:00:05]} 10. O-O-O {[%emt 0:00:17]} Rc8 {[%emt 0:00:03]} 11. Bb3 {[%emt 0:00:13]} Nxd4 $1 {[%emt 0:00:06][%mdl 4] is now more promising than 11...Ne5.} 12. Bxd4 {[%emt 0:00:39]} b5 {[%emt 0:00:05]} 13. Nd5 {[%emt 0:00:37]} Nxd5 {[%emt 0:00:07] B78: Sicilian Dragon: Yugoslav Attack, 9 Bc4 Bd7 10 0-0-0 Rc8.} 14. Bxg7 $1 {[%emt 0:00:09]} Kxg7 {[%emt 0:00:05]} 15. exd5 {[%emt 0:00:05]} a5 {[%emt 0:00:11] White is slightly better.} 16. a3 $1 {[%emt 0:00:20]} Kg8 {[%emt 0:00:12][%cal Ob5b4]} 17. Rhe1 $1 {[%emt 0:01:14]} Rc5 {[%emt 0:02:47][%cal Ob5b4]} 18. Re3 {[%emt 0:00:19]} b4 {[%emt 0:03:44]} 19. axb4 {[%emt 0:00:23]} axb4 {[%emt 0:00:05]} 20. Qxb4 {[%emt 0:00:29]} Qa8 $1 {[%emt 0:03:42]} 21. Bc4 {[%emt 0:00:32] [#]} Qa7 $146 {[%emt 0:21:36][%cal Oc5c4] [#] aiming for ...Rxc4!} ({Predecessor:} 21... Bf5 22. Ra3 Qc8 23. b3 Qc7 24. Qd2 Rc8 25. Qd4 e5 26. dxe6 d5 27. exf7+ Qxf7 {½-½ (47) Ma,Q (2606)-Jones,G (2625) Auckland 2016}) 22. Rxe7 {[%emt 0:25:38]} Rfc8 {[%emt 0:05:27]} 23. b3 {[%emt 0:05:34]} ({White should play} 23. Bd3 $14) 23... Qa1+ $11 {[%emt 0:02:51] The position is equal.} 24. Kd2 {[%emt 0:00:05]} Qb2 $36 {[%emt 0:00:30][%mdl 2048] Black is more active.} 25. Rxd7 {[%emt 0:22:40] [#] Hoping for Qb7.} Rxc4 {[%emt 0:00:07]} 26. Qxc4 {[%emt 0:00:16]} Rxc4 {[%emt 0:00:12]} 27. bxc4 {[%emt 0:00:36][%mdl 4096] Endgame KQ-KRR} Qd4+ {[%emt 0:00:36]} 28. Kc1 {[%emt 0:03:16]} Qa1+ {[%emt 0:00:33]} 29. Kd2 {[%emt 0:00:04]} Qd4+ {[%emt 0:00:05]} 30. Kc1 {[%emt 0:00:04]} Qxc4 {[%emt 0:09:05]} 31. Re7 {[%emt 0:09:56]} Qf4+ {[%emt 0:01:58]} 32. Rd2 {[%emt 0:00:05]} Qxh2 {[%emt 0:00:45]} 33. c4 {[%emt 0:02:56]} Qg1+ {[%emt 0:01:13]} 34. Kc2 {[%emt 0:00:13]} Qa1 {[%emt 0:01:05]} 35. Rc7 {[%emt 0:04:48] Active counter play!} Qa2+ {[%emt 0:03:15]} 36. Kc1 {[%emt 0:02:31]} Qa1+ {[%emt 0:01:19]} 37. Kc2 {[%emt 0:00:06]} Qa2+ {[%emt 0:00:28]} 38. Kc1 {[%emt 0:00:21]} Qa1+ {[%emt 0:01:15] Weighted Error Value: White=0.05 (flawless) /Black=0.02 (flawless)} 1/2-1/2

[Event "37th ECCC 2022"]
[Site "Mayrhofen"]
[Date "2022.10.05"]
[Round "3.65"]
[White "Lagerman, Robert"]
[Black "Vogt, Lothar"]
[Result "1/2-1/2"]
[ECO "B52"]
[WhiteElo "2305"]
[BlackElo "2331"]
[Annotator "TA"]
[PlyCount "50"]
[EventDate "2022.10.03"]
[EventType "team-tourn"]
[EventCountry "AUT"]
[SourceTitle "playchess.com"]
[Source "ChessBase"]
[SourceQuality "1"]
[TimeControl "40/5400+30:1800+30"]

{[%evp 25,50,-6,-5,-17,-7,-8,-3,-1,0,0,0,0,0,0,0,0,0,0,0,0,0,0,0,0,0,0,0]} 1. e4 {[%emt 0:00:03]} c5 {[%emt 0:00:02]} 2. Nf3 {[%emt 0:00:14]} d6 {[%emt 0:00:17]} 3. Bb5+ {[%emt 0:00:05]} Bd7 {[%emt 0:00:12]} 4. Bxd7+ {[%emt 0:00:05]} Qxd7 {[%emt 0:00:11]} 5. O-O {[%emt 0:00:26]} Nc6 {[%emt 0:00:26]} 6. Re1 {[%emt 0:00:20]} Nf6 {[%emt 0:00:24]} 7. c3 {[%emt 0:00:14]} e6 {[%emt 0:00:17]} 8. d4 {[%emt 0:00:05]} cxd4 {[%emt 0:00:29]} 9. cxd4 {[%emt 0:00:05]} d5 {[%emt 0:00:12]} 10. e5 {[%emt 0:00:14]} Ne4 {[%emt 0:00:10]} 11. Nbd2 {[%emt 0:00:06]} Nxd2 {[%emt 0:01:00]} 12. Bxd2 {[%emt 0:00:09]} Be7 {[%emt 0:02:51]} 13. Rc1 {[%emt 0:03:16]} O-O {[%emt 0:00:43] The position is equal.} 14. Qb3 {[%emt 0:04:13] B52: Sicilian: Moscow Variation with 3...Bd7.} Rfc8 {[%emt 0:06:06]} 15. Rc2 $1 {[%emt 0:06:47]} a6 {[%emt 0:04:09]} 16. Rec1 {[%emt 0:01:29] [#]} Na7 $146 {[%emt 0:04:59]} ({Predecessor:} 16... b5 17. Qd3 Na7 18. Ng5 Bxg5 19. Bxg5 Rxc2 20. Rxc2 Rc8 21. Bd2 Rxc2 22. Qxc2 Qc6 {0-1 (74) Alberny,M (2081)-Sutela,R (2319) ICCF email 2011}) 17. Bb4 {[%emt 0:13:25]} Bxb4 {[%emt 0:11:41]} 18. Qxb4 {[%emt 0:02:11]} Rxc2 {[%emt 0:02:05]} 19. Rxc2 {[%emt 0:00:30]} Rc8 {[%emt 0:00:25]} 20. Rxc8+ {[%emt 0:00:54]} Qxc8 $11 {[%emt 0:01:23] KQN-KQN} 21. h3 {[%emt 0:00:41]} Qc1+ {[%emt 0:03:46]} 22. Kh2 {[%emt 0:01:02]} Qf4+ {[%emt 0:00:13]} 23. Kg1 {[%emt 0:00:07]} Qc1+ {[%emt 0:00:08]} 24. Kh2 {[%emt 0:00:04]} Qf4+ {[%emt 0:00:06]} 25. Kg1 {[%emt 0:00:03]} Qc1+ {Not much happened in this game.  Weighted Error Value: White=0.01 (flawless) /Black=0.01 (flawless)} 1/2-1/2

[Event "37th ECCC 2022"]
[Site "Mayrhofen"]
[Date "2022.10.05"]
[Round "3.66"]
[White "Friedrich, Norbert"]
[Black "Finnsson, Johann Arnar"]
[Result "1-0"]
[ECO "B01"]
[WhiteElo "2243"]
[BlackElo "1891"]
[Annotator "TA"]
[PlyCount "45"]
[EventDate "2022.10.03"]
[EventType "team-tourn"]
[EventCountry "AUT"]
[SourceTitle "playchess.com"]
[Source "ChessBase"]
[SourceQuality "1"]
[TimeControl "40/5400+30:1800+30"]

{[%evp 12,44,68,81,103,80,113,94,97,85,213,223,209,221,240,239,236,231,346,222,200,-247,0,-194,835,829,744,809,764,783,29997,29998,29998,29999,29999]} 1. e4 {[%emt 0:00:07]} d5 {[%emt 0:00:06]} 2. exd5 {[%emt 0:00:22]} Qxd5 {[%emt 0:00:06]} 3. Nc3 {[%emt 0:00:56]} Qd8 {[%emt 0:00:07]} 4. d4 {[%emt 0:01:13]} c6 {[%emt 0:00:15]} 5. Bc4 {[%emt 0:02:58]} Bf5 {[%emt 0:00:43]} 6. Nf3 {[%emt 0:01:57]} Nf6 {[%emt 0:02:09]} 7. Ne5 {[%emt 0:08:23][%csl Ge5][%cal Rc4f7]} e6 {[%emt 0:06:28] B01: Scandinavian Defence.} 8. g4 $1 {[%emt 0:08:39]} Bg6 {[%emt 0:02:11]} 9. h4 $1 {[%emt 0:00:11] White is more active.} Bb4 {[%emt 0:03:54] White is better.} 10. f3 {[%emt 0:06:49]} Bxc2 {[%emt 0:13:30]} 11. Qxc2 $18 {[%emt 0:04:15]} Qxd4 {[%emt 0:00:41]} 12. Qe2 {[%emt 0:00:44][%cal Oe5f7] And now Nxf7! would win.} (12. f4 Nbd7 13. Nxd7 Nxg4 $14) 12... Bxc3+ {[%emt 0:00:17]} 13. bxc3 {[%emt 0:00:17]} Qxc3+ {[%emt 0:00:06]} 14. Kf2 {[%emt 0:00:16]} Qxa1 {[%emt 0:01:09] [#]} (14... O-O {was called for.}) 15. Nxf7 $1 {[%emt 0:01:07][%mdl 512]} O-O {[%emt 0:18:07] [#]} 16. Qxe6 {[%emt 0:11:23][%mdl 8192] Chess con chili.} (16. Rd1 $1 $18 {is the narrow road to win.} Nd5 17. Bb2 Qxd1 18. Nh6+ gxh6 19. Qxd1) 16... Qd4+ $2 {[%emt 0:00:36] [#]} ({Black should try} 16... Nbd7 $1 $19 17. h5 (17. Ne5+ $2 Kh8 $19) 17... Qd4+ 18. Be3 Qb2+ 19. Kg3 Rae8 20. Ne5+ Rxe6 21. Bxe6+ Rf7 $3 {[%mdl 512]} 22. Bxf7+ Kf8 23. Nxd7+ Kxf7) 17. Kg2 $146 {[%emt 0:00:25]} (17. Be3 $11 {and White is okay.} Qb2+ 18. Kg3) ({Predecessor:} 17. Be3 Qd7 18. Ne5+ Qxe6 19. Bxe6+ Kh8 20. h5 Ng8 21. Bd4 Nh6 22. Ng6+ hxg6 23. hxg6 Rf6 24. Rxh6+ gxh6 25. Bxf6# {1-0 (25) Kanov,N (2079)-Diaz Carrasco,S (2036) Sitges 2020}) 17... Qd7 $4 {[%emt 0:00:06][%mdl 8192]} (17... Nbd7 $19 18. Nh6+ Kh8) 18. Ne5+ $1 {[%emt 0:01:16][%mdl 64] Discovered Attack} Qxe6 {[%emt 0:00:15]} 19. Bxe6+ {[%emt 0:00:05] A strong pair of Bishops.} Kh8 {[%emt 0:00:12] [#]} 20. h5 $1 {[%emt 0:00:34][%cal Oe5g6,Bh4h5,Bh5g6][%mdl 32] White threatens Ng6+! and mate.} ({Weaker is} 20. Nf7+ {[#]} Rxf7 $1 21. Bxf7 Na6 $14) 20... Na6 {[%emt 0:04:56] [#]} 21. Ng6+ $1 {[%emt 0:00:47][%mdl 512] White mates.} hxg6 {[%emt 0:00:45]} 22. hxg6+ {[%emt 0:00:09]} Nh5 {[%emt 0:00:08]} 23. Rxh5# {Weighted Error Value: White=0.73/Black=0.83} 1-0